[Event "*** Titled Tuesday Blitz"]
[Site "Chess.com"]
[Date "2020.04.14"]
[Round "3"]
[White "matiss90"]
[Black "AlanZhang"]
[Result "0-1"]
[WhiteElo "2494"]
[BlackElo "2179"]
[TimeControl "180+1"]
[EndTime "10:29:31 PDT"]
[Termination "AlanZhang won by checkmate"]

1. e4 {[%clk 0:03:00.9]} 1... e5 {[%clk 0:02:59.6]} 2. Nf3 {[%clk 0:03:00.5]}
2... Nc6 {[%clk 0:03:00.2]} 3. Bb5 {[%clk 0:03:00.7]} 3... a6 {[%clk 0:03:00.5]}
4. Ba4 {[%clk 0:03:00.7]} 4... Nf6 {[%clk 0:03:00.8]} 5. d3 {[%clk 0:03:01.1]}
5... b5 {[%clk 0:03:00.4]} 6. Bb3 {[%clk 0:03:01.1]} 6... Be7 {[%clk 0:03:00.8]}
7. O-O {[%clk 0:03:01.1]} 7... d6 {[%clk 0:03:00.8]} 8. c3 {[%clk 0:03:00.1]}
8... O-O {[%clk 0:03:01]} 9. Nbd2 {[%clk 0:02:59.2]} 9... Na5 {[%clk 0:03:00.5]}
10. Bc2 {[%clk 0:02:59.4]} 10... c5 {[%clk 0:03:01]} 11. Re1 {[%clk 0:03:00.2]}
11... Qc7 {[%clk 0:03:00.7]} 12. Nf1 {[%clk 0:03:00.5]} 12... Bd7 {[%clk
0:02:54]} 13. Ne3 {[%clk 0:03:00.4]} 13... h6 {[%clk 0:02:50.1]} 14. h3 {[%clk
0:03:00.6]} 14... Rfe8 {[%clk 0:02:46.6]} 15. Nh2 {[%clk 0:03:00.7]} 15... Bf8
{[%clk 0:02:46.8]} 16. Nhg4 {[%clk 0:03:01]} 16... Nxg4 {[%clk 0:02:45.9]} 17.
hxg4 {[%clk 0:03:01.9]} 17... Bc6 {[%clk 0:02:44.4]} 18. Nf5 {[%clk 0:02:59.6]}
18... d5 {[%clk 0:02:37.3]} 19. Qf3 {[%clk 0:02:59.2]} 19... dxe4 {[%clk
0:02:16.2]} 20. dxe4 {[%clk 0:03:00.1]} 20... Nc4 {[%clk 0:02:16.3]} 21. g5
{[%clk 0:02:48]} 21... hxg5 {[%clk 0:02:13]} 22. Bxg5 {[%clk 0:02:47.7]} 22...
Nd6 {[%clk 0:02:13]} 23. g4 {[%clk 0:02:34.5]} 23... f6 {[%clk 0:02:00.2]} 24.
Bh4 {[%clk 0:02:22.5]} 24... Rad8 {[%clk 0:01:49.9]} 25. Kg2 {[%clk 0:02:18.9]}
25... Nxf5 {[%clk 0:01:48.5]} 26. gxf5 {[%clk 0:02:15.6]} 26... Rd2 {[%clk
0:01:48.3]} 27. Re2 {[%clk 0:02:03.5]} 27... Red8 {[%clk 0:01:47.7]} 28. Kh2
{[%clk 0:01:49.9]} 28... Qb7 {[%clk 0:01:38.5]} 29. Qe3 {[%clk 0:01:01.4]} 29...
Qd7 {[%clk 0:01:14.9]} 30. Rae1 {[%clk 0:00:45.5]} 30... Rxe2 {[%clk 0:00:42.8]}
31. Qxe2 {[%clk 0:00:44]} 31... Qd2 {[%clk 0:00:41.4]} 32. a4 {[%clk 0:00:35]}
32... c4 {[%clk 0:00:39.7]} 33. a5 {[%clk 0:00:33.8]} 33... Qxe2 {[%clk
0:00:20.2]} 34. Rxe2 {[%clk 0:00:34.7]} 34... b4 {[%clk 0:00:20.6]} 35. f3
{[%clk 0:00:31.3]} 35... b3 {[%clk 0:00:19.6]} 36. Bb1 {[%clk 0:00:29.3]} 36...
Rd1 {[%clk 0:00:20.1]} 37. Re1 {[%clk 0:00:29.6]} 37... Rd2+ {[%clk 0:00:20.4]}
38. Kg3 {[%clk 0:00:25.6]} 38... Rxb2 {[%clk 0:00:20.8]} 39. Kg4 {[%clk
0:00:22.3]} 39... Bc5 {[%clk 0:00:18.9]} 40. Bg3 {[%clk 0:00:17.9]} 40... Rg2
{[%clk 0:00:15.1]} 41. Kh3 {[%clk 0:00:17.8]} 41... Rg1 {[%clk 0:00:14.6]} 42.
Rxg1 {[%clk 0:00:15]} 42... Bxg1 {[%clk 0:00:15.5]} 43. Kg2 {[%clk 0:00:15.5]}
43... Bc5 {[%clk 0:00:15]} 44. Kf1 {[%clk 0:00:15.4]} 44... Kf7 {[%clk
0:00:14.4]} 45. Ke2 {[%clk 0:00:15.7]} 45... Bd6 {[%clk 0:00:13.5]} 46. Bf2
{[%clk 0:00:14.3]} 46... Bc7 {[%clk 0:00:13.1]} 47. Bb6 {[%clk 0:00:12.9]} 47...
Bxb6 {[%clk 0:00:13]} 48. axb6 {[%clk 0:00:13.8]} 48... Ke7 {[%clk 0:00:13.3]}
49. Ke3 {[%clk 0:00:12.2]} 49... Kd6 {[%clk 0:00:13.4]} 50. f4 {[%clk
0:00:12.5]} 50... Kc5 {[%clk 0:00:09.7]} 51. fxe5 {[%clk 0:00:12.1]} 51... fxe5
{[%clk 0:00:10.6]} 52. Kf3 {[%clk 0:00:12.4]} 52... Kxb6 {[%clk 0:00:10.2]} 53.
Kg4 {[%clk 0:00:12.8]} 53... a5 {[%clk 0:00:06.8]} 54. Kg5 {[%clk 0:00:13.1]}
54... Be8 {[%clk 0:00:05.6]} 55. f6 {[%clk 0:00:12.7]} 55... gxf6+ {[%clk
0:00:05.3]} 56. Kxf6 {[%clk 0:00:13.6]} 56... a4 {[%clk 0:00:05.5]} 57. Kxe5
{[%clk 0:00:14]} 57... a3 {[%clk 0:00:05.7]} 58. Kd4 {[%clk 0:00:14.3]} 58... a2
{[%clk 0:00:06]} 59. Bxa2 {[%clk 0:00:14.7]} 59... bxa2 {[%clk 0:00:06.9]} 60.
Kxc4 {[%clk 0:00:15.4]} 60... a1=Q {[%clk 0:00:07.5]} 61. e5 {[%clk 0:00:16.3]}
61... Qa4+ {[%clk 0:00:07.3]} 62. Kd3 {[%clk 0:00:16.1]} 62... Bg6+ {[%clk
0:00:07.3]} 63. Kd2 {[%clk 0:00:17]} 63... Qc2+ {[%clk 0:00:07.3]} 64. Ke3
{[%clk 0:00:17.9]} 64... Kc5 {[%clk 0:00:07.4]} 65. Kf4 {[%clk 0:00:18.8]} 65...
Qe4+ {[%clk 0:00:07.1]} 66. Kg5 {[%clk 0:00:19.7]} 66... Kd5 {[%clk 0:00:06.9]}
67. Kh6 {[%clk 0:00:20.6]} 67... Qf5 {[%clk 0:00:06.3]} 68. c4+ {[%clk
0:00:21.5]} 68... Kxe5 {[%clk 0:00:03.6]} 69. c5 {[%clk 0:00:22.4]} 69... Bf7
{[%clk 0:00:03.7]} 70. c6 {[%clk 0:00:22.4]} 70... Qg6# {[%clk 0:00:04.3]} 0-1

[Event "*** Titled Tuesday Blitz"]
[Site "Chess.com"]
[Date "2020.04.14"]
[Round "3"]
[White "renehp"]
[Black "Gentlejimmy7"]
[Result "1-0"]
[WhiteElo "2425"]
[BlackElo "2637"]
[TimeControl "180+1"]
[EndTime "10:29:32 PDT"]
[Termination "renehp won on time"]

1. e4 {[%clk 0:02:59.3]} 1... c5 {[%clk 0:02:59.6]} 2. Nf3 {[%clk 0:02:59.1]}
2... Nc6 {[%clk 0:02:58.7]} 3. d4 {[%clk 0:02:59.6]} 3... cxd4 {[%clk
0:02:57.8]} 4. Nxd4 {[%clk 0:03:00.5]} 4... Nf6 {[%clk 0:02:58.5]} 5. Nc3 {[%clk
0:03:00.8]} 5... e6 {[%clk 0:02:58.4]} 6. Ndb5 {[%clk 0:03:00.7]} 6... Bc5
{[%clk 0:02:57.5]} 7. Bf4 {[%clk 0:02:59.8]} 7... O-O {[%clk 0:02:56.8]} 8. Bd6
{[%clk 0:02:59.2]} 8... Qb6 {[%clk 0:02:54.8]} 9. Bxc5 {[%clk 0:02:57.9]} 9...
Qxc5 {[%clk 0:02:55.7]} 10. Qd6 {[%clk 0:02:58.2]} 10... Qb6 {[%clk 0:02:55.4]}
11. a4 {[%clk 0:02:47.1]} 11... a6 {[%clk 0:02:49.1]} 12. a5 {[%clk 0:02:42.5]}
12... Qd8 {[%clk 0:02:44.8]} 13. Nc7 {[%clk 0:02:37.6]} 13... Ne8 {[%clk
0:02:32.9]} 14. Nxe8 {[%clk 0:02:37]} 14... Qxe8 {[%clk 0:02:33.8]} 15. Bd3
{[%clk 0:02:35.8]} 15... Qe7 {[%clk 0:02:29.4]} 16. Qxe7 {[%clk 0:02:32.3]}
16... Nxe7 {[%clk 0:02:30.3]} 17. Rd1 {[%clk 0:02:32.2]} 17... d6 {[%clk
0:02:29.6]} 18. Bc4 {[%clk 0:02:29.5]} 18... Rd8 {[%clk 0:02:29.5]} 19. Ke2
{[%clk 0:02:29.8]} 19... Rb8 {[%clk 0:02:22.4]} 20. Rd2 {[%clk 0:02:29.2]} 20...
b5 {[%clk 0:02:19.6]} 21. axb6 {[%clk 0:02:27.1]} 21... Rxb6 {[%clk 0:02:19.4]}
22. Bb3 {[%clk 0:02:26.7]} 22... Bb7 {[%clk 0:02:11.6]} 23. Rhd1 {[%clk
0:02:26.1]} 23... Nc8 {[%clk 0:02:10.1]} 24. f4 {[%clk 0:02:13.7]} 24... Kf8
{[%clk 0:02:08.8]} 25. f5 {[%clk 0:02:11]} 25... Ke7 {[%clk 0:02:06.3]} 26. fxe6
{[%clk 0:02:11.2]} 26... fxe6 {[%clk 0:02:07.2]} 27. Rf1 {[%clk 0:02:11.7]}
27... Rb4 {[%clk 0:02:06.5]} 28. Ke3 {[%clk 0:02:11.3]} 28... Rf8 {[%clk
0:01:49.4]} 29. Rxf8 {[%clk 0:02:10.6]} 29... Kxf8 {[%clk 0:01:50.3]} 30. Bxe6
{[%clk 0:02:10.9]} 30... Rxb2 {[%clk 0:01:50.8]} 31. Bb3 {[%clk 0:02:11]} 31...
Ke7 {[%clk 0:01:29.1]} 32. Rd1 {[%clk 0:02:09.7]} 32... Bc6 {[%clk 0:01:28.6]}
33. Kd2 {[%clk 0:02:02]} 33... Nb6 {[%clk 0:01:16.8]} 34. Kc1 {[%clk 0:01:58]}
34... Rxb3 {[%clk 0:01:16.9]} 35. cxb3 {[%clk 0:01:58.9]} 35... Nd7 {[%clk
0:01:15.5]} 36. Nd5+ {[%clk 0:01:57.2]} 36... Ke6 {[%clk 0:01:09.1]} 37. Nc7+
{[%clk 0:01:57.4]} 37... Ke5 {[%clk 0:01:09.5]} 38. Nxa6 {[%clk 0:01:57.6]}
38... Bxe4 {[%clk 0:01:09.7]} 39. b4 {[%clk 0:01:55.7]} 39... Nb6 {[%clk
0:01:03.6]} 40. Nc7 {[%clk 0:01:51.4]} 40... g6 {[%clk 0:00:57.9]} 41. Kb2
{[%clk 0:01:50.6]} 41... Bxg2 {[%clk 0:00:56.9]} 42. Kc3 {[%clk 0:01:44.2]}
42... Be4 {[%clk 0:00:53.1]} 43. b5 {[%clk 0:01:40.4]} 43... d5 {[%clk
0:00:46.7]} 44. Kb4 {[%clk 0:01:40]} 44... d4 {[%clk 0:00:44.7]} 45. Na6 {[%clk
0:01:30.6]} 45... Nd5+ {[%clk 0:00:39]} 46. Kc5 {[%clk 0:01:30.1]} 46... d3
{[%clk 0:00:38.1]} 47. b6 {[%clk 0:01:26.5]} 47... Nxb6 {[%clk 0:00:33.9]} 48.
Kxb6 {[%clk 0:01:26.2]} 48... Kd4 {[%clk 0:00:32.5]} 49. Nc5 {[%clk 0:01:26.2]}
49... Bf5 {[%clk 0:00:30.9]} 50. Rc1 {[%clk 0:01:16.7]} 50... d2 {[%clk
0:00:29.6]} 51. Nb3+ {[%clk 0:01:14.3]} 51... Kd3 {[%clk 0:00:26.9]} 52. Rd1
{[%clk 0:01:13.6]} 52... Kc2 {[%clk 0:00:24.4]} 53. Rxd2+ {[%clk 0:01:14.1]}
53... Kxb3 {[%clk 0:00:24.5]} 54. Kc5 {[%clk 0:01:13.5]} 54... Kc3 {[%clk
0:00:23.5]} 55. Rd6 {[%clk 0:01:13.8]} 55... Bd3 {[%clk 0:00:18.1]} 56. Kd5
{[%clk 0:01:13]} 56... Kd2 {[%clk 0:00:18]} 57. Ke5 {[%clk 0:01:13.1]} 57... Ke3
{[%clk 0:00:17.1]} 58. Rf6 {[%clk 0:01:13]} 58... Bf5 {[%clk 0:00:07.8]} 59. Rf7
{[%clk 0:01:10]} 59... h5 {[%clk 0:00:07.5]} 60. h4 {[%clk 0:01:00.5]} 60... Kf3
{[%clk 0:00:07.7]} 61. Ra7 {[%clk 0:00:51.1]} 61... Kg4 {[%clk 0:00:06.9]} 62.
Ra4+ {[%clk 0:00:50.7]} 62... Kg3 {[%clk 0:00:06.4]} 63. Kf6 {[%clk 0:00:50.9]}
63... Bg4 {[%clk 0:00:01.4]} 64. Kg5 {[%clk 0:00:51.3]} 64... Bf5 {[%clk
0:00:01.5]} 65. Ra3+ {[%clk 0:00:51.2]} 65... Kf2 {[%clk 0:00:01.2]} 66. Kf4
{[%clk 0:00:51.1]} 1-0

[Event "*** Titled Tuesday Blitz"]
[Site "Chess.com"]
[Date "2020.04.14"]
[Round "3"]
[White "IMRosen"]
[Black "anushanlv"]
[Result "0-1"]
[WhiteElo "2494"]
[BlackElo "2152"]
[TimeControl "180+1"]
[EndTime "10:29:33 PDT"]
[Termination "anushanlv won on time"]

1. d4 {[%clk 0:03:00.9]} 1... d5 {[%clk 0:02:59.2]} 2. Bf4 {[%clk 0:03:01.3]}
2... c5 {[%clk 0:02:58.6]} 3. e3 {[%clk 0:03:01.7]} 3... cxd4 {[%clk 0:02:58.8]}
4. exd4 {[%clk 0:03:01.8]} 4... Nc6 {[%clk 0:02:59.2]} 5. Nf3 {[%clk 0:03:02.3]}
5... Bg4 {[%clk 0:02:58.4]} 6. Bb5 {[%clk 0:03:01.3]} 6... e6 {[%clk 0:02:57.7]}
7. h3 {[%clk 0:02:59.4]} 7... Bxf3 {[%clk 0:02:57.6]} 8. Qxf3 {[%clk 0:02:59.3]}
8... Bd6 {[%clk 0:02:57.9]} 9. Be3 {[%clk 0:02:33.3]} 9... Ne7 {[%clk
0:02:55.4]} 10. c3 {[%clk 0:02:22.9]} 10... O-O {[%clk 0:02:54.1]} 11. O-O
{[%clk 0:02:22.8]} 11... Rb8 {[%clk 0:02:51.6]} 12. a4 {[%clk 0:02:11.6]} 12...
Qc7 {[%clk 0:02:49.7]} 13. Bd3 {[%clk 0:02:10.4]} 13... a6 {[%clk 0:02:43.8]}
14. Nd2 {[%clk 0:02:09.2]} 14... b5 {[%clk 0:02:42.7]} 15. b4 {[%clk 0:01:57.7]}
15... e5 {[%clk 0:02:36.8]} 16. axb5 {[%clk 0:01:42.4]} 16... axb5 {[%clk
0:02:18.2]} 17. Qe2 {[%clk 0:01:03.1]} 17... exd4 {[%clk 0:02:05.7]} 18. cxd4
{[%clk 0:00:51.6]} 18... Bxb4 {[%clk 0:02:04]} 19. Rfc1 {[%clk 0:00:49]} 19...
Bxd2 {[%clk 0:01:50.1]} 20. Qxd2 {[%clk 0:00:45.1]} 20... Qd6 {[%clk 0:01:48]}
21. Bf4 {[%clk 0:00:44.9]} 21... Qb4 {[%clk 0:01:36.5]} 22. Qxb4 {[%clk
0:00:28.1]} 22... Nxb4 {[%clk 0:01:35.7]} 23. Bf1 {[%clk 0:00:28.7]} 23... Ra8
{[%clk 0:01:20.8]} 24. Rab1 {[%clk 0:00:28.9]} 24... Nbc6 {[%clk 0:01:13.5]} 25.
Bd6 {[%clk 0:00:27.4]} 25... Rfe8 {[%clk 0:01:08.7]} 26. Bxb5 {[%clk 0:00:24.7]}
26... Red8 {[%clk 0:00:43.8]} 27. Bc5 {[%clk 0:00:20.6]} 27... f6 {[%clk
0:00:41.9]} 28. Re1 {[%clk 0:00:20.3]} 28... Kf7 {[%clk 0:00:41.6]} 29. Re2
{[%clk 0:00:20.6]} 29... Rab8 {[%clk 0:00:40.8]} 30. Kh2 {[%clk 0:00:15.2]}
30... Rb7 {[%clk 0:00:38.4]} 31. Bxc6 {[%clk 0:00:13.3]} 31... Rxb1 {[%clk
0:00:37.4]} 32. Rxe7+ {[%clk 0:00:13.1]} 32... Kg6 {[%clk 0:00:37.2]} 33. Re2
{[%clk 0:00:11.7]} 33... Rc1 {[%clk 0:00:35.5]} 34. Ba4 {[%clk 0:00:11.2]} 34...
Kf7 {[%clk 0:00:33.9]} 35. Bc2 {[%clk 0:00:11]} 35... g6 {[%clk 0:00:31.7]} 36.
Bb3 {[%clk 0:00:10.3]} 36... Rd7 {[%clk 0:00:31.2]} 37. f3 {[%clk 0:00:08.9]}
37... Rb1 {[%clk 0:00:31]} 38. Ba2 {[%clk 0:00:08.3]} 38... Ra1 {[%clk
0:00:31.3]} 39. Kg3 {[%clk 0:00:08.5]} 39... h5 {[%clk 0:00:31.1]} 40. Rb2
{[%clk 0:00:08.7]} 40... Rc7 {[%clk 0:00:30.2]} 41. Bxd5+ {[%clk 0:00:08.4]}
41... Kg7 {[%clk 0:00:30.5]} 42. h4 {[%clk 0:00:09.3]} 42... Rd7 {[%clk
0:00:30.2]} 43. Re2 {[%clk 0:00:09.9]} 43... Rxd5 {[%clk 0:00:29.8]} 44. Re7+
{[%clk 0:00:10.1]} 44... Kg8 {[%clk 0:00:30]} 45. Kf4 {[%clk 0:00:07]} 45... Ra6
{[%clk 0:00:29.3]} 46. Ke4 {[%clk 0:00:06.7]} 46... Rd8 {[%clk 0:00:28.5]} 47.
Rb7 {[%clk 0:00:06.9]} 47... Re8+ {[%clk 0:00:28.7]} 48. Kf4 {[%clk 0:00:07.2]}
48... Ra2 {[%clk 0:00:28.7]} 49. g3 {[%clk 0:00:04.7]} 49... Ra5 {[%clk
0:00:28]} 50. Rb6 {[%clk 0:00:03.8]} 50... Kg7 {[%clk 0:00:27.8]} 51. Rb7+
{[%clk 0:00:04.3]} 51... Kg8 {[%clk 0:00:28.1]} 52. Bb6 {[%clk 0:00:04.8]} 52...
Rb5 {[%clk 0:00:28.2]} 53. Bc5 {[%clk 0:00:05.4]} 53... Rxb7 {[%clk 0:00:28.4]}
54. g4 {[%clk 0:00:05.3]} 54... Rd7 {[%clk 0:00:28.7]} 55. gxh5 {[%clk
0:00:05.4]} 55... gxh5 {[%clk 0:00:29.3]} 56. Kf5 {[%clk 0:00:06]} 56... Rc8
{[%clk 0:00:28.3]} 57. Ke6 {[%clk 0:00:05]} 57... Rdc7 {[%clk 0:00:27.5]} 58.
Bd6 {[%clk 0:00:04.6]} 58... Rc6 {[%clk 0:00:27.6]} 59. d5 {[%clk 0:00:03]}
59... Rc3 {[%clk 0:00:28.2]} 60. f4 {[%clk 0:00:01.8]} 60... Rh3 {[%clk
0:00:28]} 61. Be7 {[%clk 0:00:01.4]} 61... Rxh4 {[%clk 0:00:27.1]} 62. d6 {[%clk
0:00:01.9]} 62... Rxf4 {[%clk 0:00:26.9]} 63. d7 {[%clk 0:00:02.6]} 63... Ra8
{[%clk 0:00:27.1]} 0-1

[Event "*** Titled Tuesday Blitz"]
[Site "Chess.com"]
[Date "2020.04.14"]
[Round "3"]
[White "norwaytoadog"]
[Black "GracefulYear"]
[Result "0-1"]
[WhiteElo "2245"]
[BlackElo "2687"]
[TimeControl "180+1"]
[EndTime "10:29:35 PDT"]
[Termination "GracefulYear won on time"]

1. e4 {[%clk 0:02:41.6]} 1... c6 {[%clk 0:02:58.7]} 2. d4 {[%clk 0:02:41.3]}
2... d5 {[%clk 0:02:59.6]} 3. e5 {[%clk 0:02:41.4]} 3... Bf5 {[%clk 0:02:59]} 4.
Nf3 {[%clk 0:02:41.7]} 4... e6 {[%clk 0:02:59.2]} 5. Be2 {[%clk 0:02:42]} 5...
c5 {[%clk 0:02:59.3]} 6. Be3 {[%clk 0:02:41.9]} 6... Nc6 {[%clk 0:02:57.4]} 7.
dxc5 {[%clk 0:02:37.2]} 7... Qa5+ {[%clk 0:02:56.1]} 8. c3 {[%clk 0:02:35.9]}
8... Qc7 {[%clk 0:02:41.4]} 9. Bb5 {[%clk 0:02:24.6]} 9... Ne7 {[%clk 0:02:33]}
10. Nd4 {[%clk 0:02:20.6]} 10... Qxe5 {[%clk 0:02:25.6]} 11. O-O {[%clk
0:02:06.9]} 11... a6 {[%clk 0:02:22]} 12. Ba4 {[%clk 0:01:50.5]} 12... Rc8
{[%clk 0:02:10.8]} 13. Re1 {[%clk 0:01:49.7]} 13... Qf6 {[%clk 0:02:09.6]} 14.
Qd2 {[%clk 0:01:43.3]} 14... h6 {[%clk 0:02:02]} 15. b4 {[%clk 0:01:26.9]} 15...
Ng6 {[%clk 0:01:58.7]} 16. Nxf5 {[%clk 0:01:24.9]} 16... Qxf5 {[%clk 0:01:57.4]}
17. Bc2 {[%clk 0:01:22.9]} 17... Qf6 {[%clk 0:01:55.6]} 18. Bd4 {[%clk
0:01:18.8]} 18... Qg5 {[%clk 0:01:49.6]} 19. Qxg5 {[%clk 0:01:14.4]} 19... hxg5
{[%clk 0:01:50.5]} 20. Bxg6 {[%clk 0:01:14.3]} 20... fxg6 {[%clk 0:01:49.7]} 21.
Nd2 {[%clk 0:01:08.4]} 21... Kf7 {[%clk 0:01:44.7]} 22. Nf3 {[%clk 0:01:08.1]}
22... Be7 {[%clk 0:01:42.4]} 23. a4 {[%clk 0:01:02.1]} 23... Bf6 {[%clk
0:01:41]} 24. b5 {[%clk 0:00:58.5]} 24... axb5 {[%clk 0:01:40.5]} 25. axb5
{[%clk 0:00:58.4]} 25... Nxd4 {[%clk 0:01:23.4]} 26. cxd4 {[%clk 0:00:58.4]}
26... Ra8 {[%clk 0:01:18.6]} 27. h3 {[%clk 0:00:52.3]} 27... Rhc8 {[%clk
0:01:03.6]} 28. Kf1 {[%clk 0:00:47.9]} 28... Ke7 {[%clk 0:01:01.3]} 29. Rxa8
{[%clk 0:00:38.8]} 29... Rxa8 {[%clk 0:01:00.6]} 30. Ke2 {[%clk 0:00:35.1]}
30... Ra2+ {[%clk 0:00:52.4]} 31. Ke3 {[%clk 0:00:33.5]} 31... Ra3+ {[%clk
0:00:52.6]} 32. Ke2 {[%clk 0:00:32.5]} 32... Ra2+ {[%clk 0:00:52.9]} 33. Ke3
{[%clk 0:00:31.1]} 33... Ra3+ {[%clk 0:00:52.8]} 34. Ke2 {[%clk 0:00:29]} 34...
Ra4 {[%clk 0:00:52.1]} 35. Rd1 {[%clk 0:00:28]} 35... Rc4 {[%clk 0:00:44.5]} 36.
Kd3 {[%clk 0:00:26.5]} 36... Rb4 {[%clk 0:00:36.7]} 37. b6 {[%clk 0:00:26.1]}
37... Rb2 {[%clk 0:00:35.3]} 38. Ra1 {[%clk 0:00:25.5]} 38... Kd7 {[%clk
0:00:31]} 39. Ra7 {[%clk 0:00:24.7]} 39... Kc6 {[%clk 0:00:29.5]} 40. Nd2 {[%clk
0:00:22.6]} 40... Bxd4 {[%clk 0:00:26.5]} 41. Kxd4 {[%clk 0:00:20.2]} 41...
Rxd2+ {[%clk 0:00:26.1]} 42. Ke5 {[%clk 0:00:20.7]} 42... Rxf2 {[%clk
0:00:21.6]} 43. Kxe6 {[%clk 0:00:20.7]} 43... d4 {[%clk 0:00:22]} 44. Ra8 {[%clk
0:00:18.4]} 44... d3 {[%clk 0:00:22.3]} 45. Rc8+ {[%clk 0:00:18.1]} 45... Kb5
{[%clk 0:00:22.4]} 46. c6 {[%clk 0:00:17.5]} 46... Kxb6 {[%clk 0:00:22.5]} 47.
c7 {[%clk 0:00:17.2]} 47... d2 {[%clk 0:00:22.4]} 48. Rf8 {[%clk 0:00:10.5]}
48... Kxc7 {[%clk 0:00:23.3]} 49. Rxf2 {[%clk 0:00:10.3]} 49... d1=Q {[%clk
0:00:23.4]} 50. Rf7+ {[%clk 0:00:09.9]} 50... Kc6 {[%clk 0:00:21.8]} 51. Rxg7
{[%clk 0:00:09.9]} 51... Qd5+ {[%clk 0:00:21.5]} 52. Kf6 {[%clk 0:00:09.9]}
52... Qxg2 {[%clk 0:00:21.3]} 53. Rxg6 {[%clk 0:00:09.6]} 53... Qxh3 {[%clk
0:00:21.3]} 54. Rxg5 {[%clk 0:00:10]} 54... b5 {[%clk 0:00:20.5]} 55. Ke5 {[%clk
0:00:06.8]} 55... Qc3+ {[%clk 0:00:19.5]} 56. Ke4 {[%clk 0:00:06.8]} 56... Qc4+
{[%clk 0:00:19.5]} 57. Kf3 {[%clk 0:00:06.8]} 57... b4 {[%clk 0:00:20.4]} 58.
Rg8 {[%clk 0:00:05.4]} 58... Qc3+ {[%clk 0:00:21.3]} 59. Ke2 {[%clk 0:00:04.8]}
59... Kb5 {[%clk 0:00:22.2]} 60. Rb8+ {[%clk 0:00:04.4]} 60... Ka4 {[%clk
0:00:23.1]} 61. Ra8+ {[%clk 0:00:04.3]} 61... Kb3 {[%clk 0:00:23.3]} 62. Kd1
{[%clk 0:00:04.7]} 62... Qc2+ {[%clk 0:00:22.9]} 63. Ke1 {[%clk 0:00:05]} 63...
Kb2 {[%clk 0:00:23.5]} 64. Rb8 {[%clk 0:00:03.8]} 64... b3 {[%clk 0:00:23.9]}
0-1

[Event "*** Titled Tuesday Blitz"]
[Site "Chess.com"]
[Date "2020.04.14"]
[Round "3"]
[White "Justinz"]
[Black "NastaJ"]
[Result "1-0"]
[WhiteElo "2280"]
[BlackElo "1938"]
[TimeControl "180+1"]
[EndTime "10:29:37 PDT"]
[Termination "Justinz won on time"]

1. e4 {[%clk 0:03:00.9]} 1... c6 {[%clk 0:02:59.2]} 2. d4 {[%clk 0:02:59.5]}
2... d5 {[%clk 0:02:57.5]} 3. e5 {[%clk 0:02:57.1]} 3... Bf5 {[%clk 0:02:57.2]}
4. h4 {[%clk 0:02:56.6]} 4... h5 {[%clk 0:02:56.5]} 5. c4 {[%clk 0:02:55.6]}
5... e6 {[%clk 0:02:35.4]} 6. Nc3 {[%clk 0:02:54.6]} 6... Ne7 {[%clk 0:02:30.2]}
7. Nge2 {[%clk 0:02:53.1]} 7... Bg6 {[%clk 0:02:30.1]} 8. Bg5 {[%clk 0:02:49.9]}
8... Qa5 {[%clk 0:02:23.2]} 9. Nf4 {[%clk 0:02:44.4]} 9... Nf5 {[%clk
0:02:06.5]} 10. cxd5 {[%clk 0:02:32.7]} 10... cxd5 {[%clk 0:02:04.8]} 11. Rc1
{[%clk 0:02:25.3]} 11... Nc6 {[%clk 0:01:58.4]} 12. Bb5 {[%clk 0:02:24.3]} 12...
Bb4 {[%clk 0:01:53.5]} 13. O-O {[%clk 0:02:24]} 13... Bxc3 {[%clk 0:01:50.4]}
14. Bxc6+ {[%clk 0:02:21.3]} 14... bxc6 {[%clk 0:01:49.8]} 15. bxc3 {[%clk
0:02:15.4]} 15... Qxa2 {[%clk 0:01:40.4]} 16. Qf3 {[%clk 0:01:59.2]} 16... O-O
{[%clk 0:01:22.7]} 17. Nxh5 {[%clk 0:01:57.5]} 17... Bxh5 {[%clk 0:01:21.9]} 18.
Qxh5 {[%clk 0:01:56.7]} 18... Rfe8 {[%clk 0:01:05.1]} 19. g4 {[%clk 0:01:33.1]}
19... Ne7 {[%clk 0:01:03.6]} 20. f4 {[%clk 0:01:27.6]} 20... Qe2 {[%clk
0:00:57.1]} 21. f5 {[%clk 0:01:23.9]} 21... exf5 {[%clk 0:00:54.6]} 22. Bxe7
{[%clk 0:01:23.3]} 22... Rxe7 {[%clk 0:00:51.7]} 23. Qxf5 {[%clk 0:01:22.7]}
23... Qe3+ {[%clk 0:00:50.4]} 24. Kg2 {[%clk 0:01:22.2]} 24... a5 {[%clk
0:00:41.4]} 25. Rc2 {[%clk 0:01:19]} 25... a4 {[%clk 0:00:39.9]} 26. Rf3 {[%clk
0:01:16.4]} 26... Qh6 {[%clk 0:00:37.3]} 27. Rff2 {[%clk 0:01:12.8]} 27... Qxh4
{[%clk 0:00:36]} 28. Rc1 {[%clk 0:01:05.2]} 28... Qh7 {[%clk 0:00:31.2]} 29. Qg5
{[%clk 0:01:00]} 29... Qe4+ {[%clk 0:00:31]} 30. Kg3 {[%clk 0:00:58.3]} 30...
Rea7 {[%clk 0:00:26.7]} 31. Rcf1 {[%clk 0:00:54]} 31... a3 {[%clk 0:00:23.5]}
32. Rf4 {[%clk 0:00:53.9]} 32... Qe3+ {[%clk 0:00:22]} 33. R1f3 {[%clk
0:00:53.7]} 33... Qe1+ {[%clk 0:00:21]} 34. Rf2 {[%clk 0:00:51.7]} 34... Qxc3+
{[%clk 0:00:21]} 35. R2f3 {[%clk 0:00:48.9]} 35... Qe1+ {[%clk 0:00:21.1]} 36.
Rf2 {[%clk 0:00:48.9]} 36... Qc3+ {[%clk 0:00:21.1]} 37. R2f3 {[%clk 0:00:47.8]}
37... Qe1+ {[%clk 0:00:21.3]} 38. Kg2 {[%clk 0:00:47.8]} 38... Qd2+ {[%clk
0:00:20.9]} 39. Rf2 {[%clk 0:00:46.7]} 39... Qd3 {[%clk 0:00:17.7]} 40. e6
{[%clk 0:00:45.3]} 40... f6 {[%clk 0:00:14.9]} 41. Rxf6 {[%clk 0:00:44.9]} 41...
Qe4+ {[%clk 0:00:14.7]} 42. Kh2 {[%clk 0:00:45]} 42... Qxd4 {[%clk 0:00:13.5]}
43. Rf7 {[%clk 0:00:44.1]} 43... Rxf7 {[%clk 0:00:09.9]} 44. exf7+ {[%clk
0:00:37.8]} 44... Kf8 {[%clk 0:00:09.3]} 45. Qh4 {[%clk 0:00:26.4]} 45... Qe5+
{[%clk 0:00:07.6]} 46. Kg2 {[%clk 0:00:26.5]} 46... Qe4+ {[%clk 0:00:07.3]} 47.
Kh2 {[%clk 0:00:24.1]} 47... Qe5+ {[%clk 0:00:07.2]} 48. Kh1 {[%clk 0:00:23.9]}
48... Qe4+ {[%clk 0:00:07.4]} 49. Kg1 {[%clk 0:00:23.2]} 49... Qb1+ {[%clk
0:00:07]} 50. Kh2 {[%clk 0:00:22.5]} 50... a2 {[%clk 0:00:04.4]} 51. Qh8+ {[%clk
0:00:22.2]} 51... Ke7 {[%clk 0:00:04.4]} 52. f8=Q+ {[%clk 0:00:22.3]} 52... Rxf8
{[%clk 0:00:03.4]} 53. Qxf8+ {[%clk 0:00:23.2]} 53... Ke6 {[%clk 0:00:03.5]} 54.
Qf7+ {[%clk 0:00:21.5]} 54... Ke5 {[%clk 0:00:03.6]} 55. Qf5+ {[%clk 0:00:19.3]}
55... Kd6 {[%clk 0:00:03]} 56. Qf8+ {[%clk 0:00:16.3]} 56... Kc7 {[%clk
0:00:02.1]} 57. Qe7+ {[%clk 0:00:14]} 57... Kb6 {[%clk 0:00:02.1]} 58. Qd8+
{[%clk 0:00:13.1]} 58... Kc5 {[%clk 0:00:02.1]} 59. Qa8 {[%clk 0:00:12.6]} 59...
a1=Q {[%clk 0:00:01.1]} 60. Qg8 {[%clk 0:00:09.8]} 1-0